fUSD/lending_fUSD_20250308
["ID","MTS","AMOUNT","RATE_DAILY","PERIOD"]
[355658202,1741443055060,-1725.43,9.315e-05,2]
[355658203,1741443055069,-500.0,9.315e-05,2]
[355658204,1741443055081,-1698.35,9.315e-05,2]
[355658205,1741443055090,-3160.81,9.315e-05,2]
[355658206,1741443055100,-1242.18,9.315e-05,2]
[355658207,1741443055110,-555.82,9.315e-05,2]
[355658208,1741443055120,-1646.8,9.315e-05,2]
[355658209,1741443055131,-500.0,9.315e-05,2]
[355658210,1741443055140,-6451.11,9.315e-05,2]
[355658211,1741443055151,-500.0,9.315e-05,2]
[355658212,1741443055218,-1917.52,9.315e-05,2]
[355658213,1741443055228,-500.0,9.315e-05,2]
[355658214,1741443055238,-1833.4,9.315e-05,2]
[355658215,1741443055247,-1440.65,9.315e-05,2]
[355658216,1741443055257,-10074.21,9.315e-05,2]
[355658217,1741443055267,-401.7506051,9.315e-05,2]
[355658218,1741443055276,-1484.97,9.315e-05,2]
[355658219,1741443055286,-910.58,9.315e-05,2]
[355658220,1741443055295,-854.44,9.315e-05,2]
[355658221,1741443055304,-500.0,9.315e-05,2]
[355658222,1741443055313,-1085.59,9.315e-05,2]
[355658223,1741443055322,-786.84,9.315e-05,2]
[355658224,1741443055331,-3065.61,9.315e-05,2]
[355658225,1741443055341,-3916.11,9.315e-05,2]
[355658226,1741443055350,-3110.92,9.315e-05,2]
[355658227,1741443055360,-500.0,9.315e-05,2]
[355658228,1741443055369,-2070.62,9.315e-05,2]
[355658229,1741443055378,-1877.02,9.315e-05,2]
[355658230,1741443055387,-500.0,9.315e-05,2]
[355658231,1741443055397,-2600.68,9.315e-05,2]
[355658232,1741443055406,-1300.92,9.315e-05,2]
[355658233,1741443055416,-1518.1,9.315e-05,2]
[355658234,1741443055426,-1783.42,9.315e-05,2]
[355658235,1741443055437,-17366.31,9.315e-05,2]
[355658236,1741443055450,-1110.41,9.315e-05,2]
[355658237,1741443055459,-3606.8,9.315e-05,2]
[355658238,1741443055469,-500.0,9.315e-05,2]
[355658239,1741443055479,-1428.23,9.315e-05,2]
[355658240,1741443055488,-1604.73,9.315e-05,2]
[355658241,1741443055498,-2488.11,9.315e-05,2]
[355658242,1741443055508,-4380.18,9.315e-05,2]
[355658243,1741443055517,-1902.18,9.315e-05,2]
[355658244,1741443055527,-2382.88,9.315e-05,2]
[355658245,1741443055537,-500.0,9.315e-05,2]
[355658246,1741443055547,-2615.48,9.315e-05,2]
[355658247,1741443055557,-1056.55,9.315e-05,2]
[355658248,1741443055566,-558.68,9.315e-05,2]
[355658249,1741443055576,-4241.28,9.315e-05,2]
[355658250,1741443055586,-1854.0,9.315e-05,2]
[355658251,1741443055597,-500.0,9.315e-05,2]
[355658252,1741443055609,-1252.52,9.315e-05,2]
[355658253,1741443055620,-610.29,9.315e-05,2]
[355658254,1741443055631,-4734.27,9.315e-05,2]
[355658255,1741443055641,-1857.06,9.315e-05,2]
[355658256,1741443055650,-4064.24,9.315e-05,2]
[355658257,1741443055660,-261.89828531,9.315e-05,2]
[355658258,1741443055669,-500.0,9.315e-05,2]
[355658259,1741443055679,-3230.72,9.315e-05,2]
[355658260,1741443055689,-3462.55,9.315e-05,2]
[355658261,1741443055698,-1025.23,9.315e-05,2]
[355658262,1741443055708,-1206.67,9.315e-05,2]
[355658263,1741443055718,-8849.92,9.315e-05,2]
[355658264,1741443055728,-5008.55,9.315e-05,2]
[355658265,1741443055738,-1496.91,9.315e-05,2]
[355658266,1741443055747,-2070.31,9.315e-05,2]
[355658267,1741443055758,-500.0,9.315e-05,2]
[355658268,1741443055767,-500.0,9.315e-05,2]
[355658269,1741443055776,-9292.35,9.315e-05,2]
[355658270,1741443055786,-42303.85,9.315e-05,2]
[355658271,1741443055796,-1320.92,9.315e-05,2]
[355658272,1741443055806,-1380.62,9.315e-05,2]
[355658273,1741443055817,-678.39,9.315e-05,2]
[355658274,1741443055829,-500.0,9.315e-05,2]
[355658275,1741443055839,-1829.16,9.315e-05,2]
[355658276,1741443055849,-1061.9,9.315e-05,2]
[355658277,1741443055861,-500.0,9.315e-05,2]
[355658278,1741443055871,-16762.17,9.315e-05,2]
[355658279,1741443055882,-9258.24,9.315e-05,2]
[355658280,1741443055892,-1142.2,9.315e-05,2]
[355658281,1741443055903,-1882.17,9.315e-05,2]
[355658282,1741443055912,-2252.9,9.315e-05,2]
[355658283,1741443055922,-3242.24,9.315e-05,2]
[355658284,1741443055931,-2112.24,9.315e-05,2]
[355658285,1741443055940,-3163.21,9.315e-05,2]
[355658286,1741443055950,-4429.17,9.315e-05,2]
[355658287,1741443055960,-2892.84,9.315e-05,2]
[355658288,1741443055971,-500.0,9.315e-05,2]
[355658289,1741443055981,-617.39,9.315e-05,2]
[355658290,1741443055994,-9621.9,9.315e-05,2]
[355658291,1741443056004,-801.54,9.315e-05,2]
[355658292,1741443056015,-565.35,9.315e-05,2]
[355658293,1741443056025,-2649.31,9.315e-05,2]
[355658294,1741443056034,-504.74,9.315e-05,2]
[355658295,1741443056043,-500.0,9.315e-05,2]
[355658296,1741443056053,-2954.68,9.315e-05,2]
[355658297,1741443056062,-1030.66,9.315e-05,2]
[355658298,1741443056073,-596.27,9.315e-05,2]
[355658299,1741443056083,-1000.0,9.4e-05,2]
[355658300,1741443056092,-181.85,9.425e-05,2]
[355658301,1741443056102,-160.27831035,9.473e-05,2]
[355658302,1741443056111,-160.31353936,9.473e-05,2]
[355658303,1741443056121,-167.05992787,9.473e-05,2]
[355658304,1741443056130,-160.27831034,9.473e-05,2]
[355658305,1741443056140,-4041.32,9.499e-05,2]
[355658306,1741443056150,-4041.32,9.499e-05,2]
[355658307,1741443056159,-4041.32,9.499e-05,2]
[355658308,1741443056169,-4041.32,9.499e-05,2]
[355658309,1741443056179,-4041.32,9.499e-05,2]
[355658310,1741443056189,-4041.32,9.499e-05,2]
[355658311,1741443056199,-4041.32,9.499e-05,2]
[355658312,1741443056208,-4041.32,9.499e-05,2]
[355658313,1741443056218,-4041.38104101,9.499e-05,2]
[355658314,1741443056227,-9099605.22883872,9.5e-05,2]
[355658315,1741443056655,-1810849.17933,9.5e-05,2]
[355658316,1741443056666,-1021520.0,9.5e-05,2]
[355658317,1741443056678,-540.49795588,9.5e-05,2]
[355658318,1741443056690,-1472.14757156,9.5e-05,2]
[355658319,1741443056702,-1208.7485247,9.5e-05,2]
[355658320,1741443056715,-752.76793986,9.5e-05,2]
[355658321,1741443056744,-5450.527,9.5e-05,2]
[355658322,1741443056759,-383.12875825,9.5e-05,2]
[355658323,1741443056770,-1231.85132041,9.5e-05,2]
[355658324,1741443056782,-428.59140228,9.5e-05,2]
[355658325,1741443056821,-861.22,8.767e-05,2]
[355658326,1741443056831,-2134.61,9.5e-05,2]
[355658327,1741443056843,-294.33656805,9.5e-05,2]
[355658328,1741443056855,-475.22000005,9.5e-05,2]
[355658329,1741443056867,-413.27807374,9.5e-05,2]
[355658330,1741443057890,-1113.0,8.245e-05,2]
[355658331,1741443057904,-861.22,9.041e-05,2]
[355658332,1741443057920,-861.22,9.315e-05,2]
[355658333,1741443057929,-17044.54076198,9.5e-05,2]
[355658334,1741443057941,-8823.89294892,9.5e-05,2]
[355658335,1741443057952,-2079.24975989,9.5e-05,2]
[355658336,1741443057967,-999.42965019,9.5e-05,2]
[355658337,1741443057988,-2976.7763258,9.5e-05,2]
[355658338,1741443058005,-1840.57138119,9.5e-05,2]
[355658339,1741443058016,-313680.28254924,9.5e-05,2]
[355658340,1741443058027,-1014.65181102,9.5e-05,2]
[355658341,1741443058038,-22220.87097642,9.5e-05,2]
[355658342,1741443058050,-1454.24614478,9.5e-05,2]
[355658343,1741443058061,-4315.16040471,9.5e-05,2]
[355658344,1741443058072,-18442.30823687,9.5e-05,2]
[355658345,1741443058085,-3012.18350575,9.5e-05,2]
[355658346,1741443058185,-845.926513,9.5e-05,2]
[355658347,1741443058197,-2080.7831712,9.5e-05,2]
[355658348,1741443058209,-606.84461065,9.5e-05,2]
[355658349,1741443058220,-510.0000005,9.5e-05,2]
[355658350,1741443058237,-1062.29555533,9.5e-05,2]
[355658351,1741443058248,-1984.43358035,9.5e-05,2]
[355658352,1741443058260,-548.35263034,9.5e-05,2]
[355658353,1741443058272,-26076.53274058,9.5e-05,2]
[355658354,1741443058284,-1333.79158089,9.5e-05,2]
[355658355,1741443058295,-354.18595606,9.5e-05,2]
[355658356,1741443058307,-534.82997,9.5e-05,2]
[355658357,1741443058318,-23370.34657194,9.5e-05,2]
[355658358,1741443058330,-1939.00371655,9.5e-05,2]
[355658359,1741443058536,-75394.80032126,9.5e-05,2]
[355658360,1741443058547,-1049.41419005,9.5e-05,2]
[355658361,1741443058558,-1685.77121904,9.5e-05,2]
[355658362,1741443058570,-1007.52312096,9.5e-05,2]
[355658363,1741443058584,-179339.16912812,9.5e-05,2]
[355658364,1741443058595,-22242.01838731,9.5e-05,2]
[355658365,1741443058606,-578.6613056,9.5e-05,2]
[355658366,1741443058617,-467.4210005,9.5e-05,2]
[355658367,1741443058629,-1995.6,9.5e-05,2]
[355658368,1741443058640,-281126.05413453,9.5e-05,2]
[355658369,1741443058651,-1705.5582732,9.5e-05,2]
[355658370,1741443058663,-23484.62335038,9.5e-05,2]
[355658371,1741443058674,-11965.68374882,9.5e-05,2]
[355658372,1741443058695,-294.41803943,9.315e-05,2]
[355658373,1741443058707,-1000.0,9.315e-05,2]
[355658374,1741443058718,-289.15000193,9.315e-05,2]
[355658375,1741443058827,-297.86500257,9.315e-05,2]
[355658376,1741443058839,-4919.72166071,9.315e-05,2]
[355658377,1741443059028,-507.53028692,9.315e-05,2]
[355658378,1741443059040,-5219.12795026,9.315e-05,2]
[355658379,1741443059051,-9769.80971887,9.315e-05,2]
[355658380,1741443059060,-367.26055934,9.315e-05,2]
[355658381,1741443059070,-62715.92972479,9.5e-05,2]
[355658382,1741443060413,-515.811067,9.5e-05,2]
[355658383,1741443060425,-475.33246739,9.5e-05,2]
[355658384,1741443060437,-565.99524606,9.5e-05,2]
[355658385,1741443060448,-832.662,9.5e-05,2]
[355658386,1741443060471,-423.95581672,9.5e-05,2]
[355658387,1741443060482,-805.78275374,9.5e-05,2]
[355658388,1741443060493,-528818.03840688,9.5e-05,2]
[355658389,1741443060503,-433.39831495,9.552e-05,2]
[355658390,1741443060512,-150.0,9.562e-05,7]
[355658391,1741443060522,-5154.78301755,9.588e-05,2]
[355658392,1741443060531,-2612.13,9.588e-05,2]
[355658393,1741443060540,-164.754437,9.589e-05,2]
[355658394,1741443060549,-164.754436,9.589e-05,2]
[355658395,1741443060559,-164.754437,9.589e-05,2]
[355658396,1741443060569,-500.0,9.589e-05,2]
[355658397,1741443060578,-500.0,9.589e-05,2]
[355658398,1741443060588,-560.61,9.589e-05,2]
[355658399,1741443060598,-520.96,9.589e-05,2]
[355658400,1741443060607,-512.35,9.589e-05,2]
[355658401,1741443060616,-164.754437,9.589e-05,2]
[355658402,1741443060627,-629.25,9.589e-05,2]
[355658403,1741443060638,-581.53,9.589e-05,2]
[355658404,1741443060649,-500.0,9.589e-05,2]
[355658405,1741443060659,-164.754436,9.589e-05,2]
[355658406,1741443060669,-545.15,9.589e-05,2]
[355658407,1741443060680,-500.0,9.589e-05,2]
[355658408,1741443060691,-500.0,9.589e-05,2]
[355658409,1741443060700,-500.0,9.589e-05,2]
[355658410,1741443060710,-500.0,9.589e-05,2]
[355658411,1741443060719,-164.754437,9.589e-05,2]
[355658412,1741443060729,-500.0,9.589e-05,2]
[355658413,1741443060738,-768.03,9.589e-05,2]
[355658414,1741443060747,-524.49,9.589e-05,2]
[355658415,1741443060757,-500.0,9.589e-05,2]
[355658416,1741443060766,-500.0,9.589e-05,2]
[355658417,1741443060776,-615.62,9.589e-05,2]
[355658418,1741443060785,-500.0,9.589e-05,2]
[355658419,1741443060795,-552.32,9.589e-05,2]
[355658420,1741443060804,-500.0,9.589e-05,2]
[355658421,1741443060814,-660.81,9.589e-05,2]
[355658422,1741443060824,-754.13,9.589e-05,2]
[355658423,1741443060833,-727.614314,9.589e-05,2]
[355658424,1741443060843,-500.0,9.589e-05,2]
[355658425,1741443060853,-500.0,9.589e-05,2]
[355658426,1741443060863,-653.54,9.589e-05,2]
[355658427,1741443060872,-559.78,9.589e-05,2]
[355658428,1741443060881,-513.83,9.589e-05,2]
[355658429,1741443060890,-500.0,9.589e-05,2]
[355658430,1741443060900,-500.0,9.589e-05,2]
[355658431,1741443060909,-803.72,9.589e-05,2]
[355658432,1741443060918,-563.72,9.589e-05,2]
[355658433,1741443060927,-500.0,9.589e-05,2]
[355658434,1741443060938,-500.0,9.589e-05,2]
[355658435,1741443060947,-500.0,9.589e-05,2]
[355658436,1741443060956,-761.99,9.589e-05,2]
[355658437,1741443060966,-500.0,9.589e-05,2]
[355658438,1741443061147,-433.052602,9.589e-05,2]
[355658439,1741443061163,-592.61,9.589e-05,2]
[355658440,1741443061178,-786.73,9.589e-05,2]
[355658441,1741443061199,-1010.45,9.589e-05,2]
[355658442,1741443061218,-729.33,9.589e-05,2]
[355658443,1741443061228,-544.51,9.589e-05,2]
[355658444,1741443061238,-500.0,9.589e-05,2]
[355658445,1741443061248,-734.85,9.589e-05,2]
[355658446,1741443061258,-500.0,9.589e-05,2]
[355658447,1741443061267,-500.0,9.589e-05,2]
[355658448,1741443061278,-500.0,9.589e-05,2]
[355658449,1741443061287,-1249.74,9.589e-05,2]
[355658450,1741443061297,-511.29,9.589e-05,2]
[355658451,1741443061307,-500.0,9.589e-05,2]
[355658452,1741443061315,-500.0,9.589e-05,2]
[355658453,1741443061326,-500.0,9.589e-05,2]
[355658454,1741443061334,-739.08,9.589e-05,2]
[355658455,1741443061343,-901.97,9.589e-05,2]
[355658456,1741443061352,-506.97,9.589e-05,2]
[355658457,1741443061362,-700.65,9.589e-05,2]
[355658458,1741443061371,-500.0,9.589e-05,2]
[355658459,1741443061380,-500.0,9.589e-05,2]
[355658460,1741443061390,-746.52,9.589e-05,2]
[355658461,1741443061399,-500.0,9.589e-05,2]
[355658462,1741443061408,-1023.75,9.589e-05,2]
[355658463,1741443061418,-1788.71,9.589e-05,2]
[355658464,1741443061427,-538.82,9.589e-05,2]
[355658465,1741443061438,-917.24,9.589e-05,2]
[355658466,1741443061447,-500.0,9.589e-05,2]
[355658467,1741443061456,-684.24,9.589e-05,2]
[355658468,1741443061466,-758.36,9.589e-05,2]
[355658469,1741443061476,-563.39,9.589e-05,2]
[355658470,1741443061485,-1058.88,9.589e-05,2]
[355658471,1741443061494,-500.0,9.589e-05,2]
[355658472,1741443061504,-637.39,9.589e-05,2]
[355658473,1741443061514,-648.49,9.589e-05,2]
[355658474,1741443061523,-500.0,9.589e-05,2]
[355658475,1741443061532,-531.55,9.589e-05,2]
[355658476,1741443061542,-723.58,9.589e-05,2]
[355658477,1741443061551,-500.0,9.589e-05,2]
[355658478,1741443061560,-500.0,9.589e-05,2]
[355658479,1741443061570,-780.28,9.589e-05,2]
[355658480,1741443061579,-500.0,9.589e-05,2]
[355658481,1741443061589,-570.62,9.589e-05,2]
[355658482,1741443061598,-1157.7,9.589e-05,2]
[355658483,1741443061607,-605.01,9.589e-05,2]
[355658484,1741443061617,-500.0,9.589e-05,2]
[355658485,1741443061627,-500.0,9.589e-05,2]
[355658486,1741443061636,-854.81,9.589e-05,2]
[355658487,1741443061646,-1240.07,9.589e-05,2]
[355658488,1741443061656,-500.0,9.589e-05,2]
[355658489,1741443061665,-623.79,9.589e-05,2]
[355658490,1741443061675,-843.06,9.589e-05,2]
[355658491,1741443061684,-958.76,9.589e-05,2]
[355658492,1741443061695,-628.52,9.589e-05,2]
[355658493,1741443061704,-500.0,9.589e-05,2]
[355658494,1741443061714,-574.65,9.589e-05,2]
[355658495,1741443061724,-506.63,9.589e-05,2]
[355658496,1741443061734,-679.56,9.589e-05,2]
[355658497,1741443061744,-500.0,9.589e-05,2]
[355658498,1741443061754,-851.33,9.589e-05,2]
[355658499,1741443061766,-1061.72,9.589e-05,2]
[355658500,1741443061775,-500.0,9.589e-05,2]
[355658501,1741443061784,-500.0,9.589e-05,2]
[355658502,1741443061794,-500.0,9.589e-05,2]
[355658503,1741443061804,-500.0,9.589e-05,2]
[355658504,1741443061814,-966.78,9.589e-05,2]
[355658505,1741443061823,-851.53,9.589e-05,2]
[355658506,1741443061833,-500.0,9.589e-05,2]
[355658507,1741443061842,-673.96,9.589e-05,2]
[355658508,1741443061852,-500.0,9.589e-05,2]
[355658509,1741443061862,-500.0,9.589e-05,2]
[355658510,1741443061871,-1036.71,9.589e-05,2]
[355658511,1741443061880,-500.0,9.589e-05,2]
[355658512,1741443061890,-500.0,9.589e-05,2]
[355658513,1741443061900,-500.0,9.589e-05,2]
[355658514,1741443061909,-695.04,9.589e-05,2]
[355658515,1741443061918,-739.48,9.589e-05,2]
[355658516,1741443061927,-500.0,9.589e-05,2]
[355658517,1741443061936,-500.0,9.589e-05,2]
[355658518,1741443061945,-500.0,9.589e-05,2]
[355658519,1741443061955,-500.0,9.589e-05,2]
[355658520,1741443061964,-500.0,9.589e-05,2]
[355658521,1741443061973,-513.98,9.589e-05,2]
[355658522,1741443061983,-653.93,9.589e-05,2]
[355658523,1741443061997,-870.9,9.589e-05,2]
[355658524,1741443062007,-681.29,9.589e-05,2]
[355658525,1741443062016,-933.52,9.589e-05,2]
[355658526,1741443062026,-500.0,9.589e-05,2]
[355658527,1741443062037,-500.0,9.589e-05,2]
[355658528,1741443062046,-500.0,9.589e-05,2]
[355658529,1741443062056,-566.17,9.589e-05,2]
[355658530,1741443062067,-760.4,9.589e-05,2]
[355658531,1741443062077,-1186.16,9.589e-05,2]
[355658532,1741443062087,-531.76,9.589e-05,2]
[355658533,1741443062097,-758.39,9.589e-05,2]
[355658534,1741443062107,-500.0,9.589e-05,2]
[355658535,1741443062116,-557.4,9.589e-05,2]
[355658536,1741443062126,-1238.95,9.589e-05,2]
[355658537,1741443062136,-1214.84,9.589e-05,2]
[355658538,1741443062145,-1401.54,9.589e-05,2]
[355658539,1741443062155,-545.4,9.589e-05,2]
[355658540,1741443062165,-1372.1,9.589e-05,2]
[355658541,1741443062175,-1420.4,9.589e-05,2]
[355658542,1741443062185,-500.0,9.589e-05,2]
[355658543,1741443062196,-628.38,9.589e-05,2]
[355658544,1741443062206,-500.0,9.589e-05,2]
[355658545,1741443062215,-500.0,9.589e-05,2]
[355658546,1741443062225,-889.98,9.589e-05,2]
[355658547,1741443062234,-500.0,9.589e-05,2]
[355658548,1741443062243,-986.01,9.589e-05,2]
[355658549,1741443062252,-1398.18,9.589e-05,2]
[355658550,1741443062262,-500.0,9.589e-05,2]
[355658551,1741443062272,-500.0,9.589e-05,2]
[355658552,1741443062281,-534.5,9.589e-05,2]
[355658553,1741443062290,-500.0,9.589e-05,2]
[355658554,1741443062301,-500.0,9.589e-05,2]
[355658555,1741443062310,-544.92,9.589e-05,2]
[355658556,1741443062319,-919.16,9.589e-05,2]
[355658557,1741443062328,-1207.01,9.589e-05,2]
[355658558,1741443062337,-1344.19,9.589e-05,2]
[355658559,1741443062346,-500.0,9.589e-05,2]
[355658560,1741443062355,-500.0,9.589e-05,2]
[355658561,1741443062364,-500.0,9.589e-05,2]
[355658562,1741443062373,-1516.04,9.589e-05,2]
[355658563,1741443062382,-1219.17,9.589e-05,2]
[355658564,1741443062392,-733.09,9.589e-05,2]
[355658565,1741443062402,-1350.84,9.589e-05,2]
[355658566,1741443062412,-1187.04,9.589e-05,2]
[355658567,1741443062421,-508.22,9.589e-05,2]
[355658568,1741443062431,-815.81,9.589e-05,2]
[355658569,1741443062440,-793.26,9.589e-05,2]
[355658570,1741443062450,-500.0,9.589e-05,2]
[355658571,1741443062459,-643.27,9.589e-05,2]
[355658572,1741443062468,-500.0,9.589e-05,2]
[355658573,1741443062478,-1669.47,9.589e-05,2]
[355658574,1741443062487,-500.0,9.589e-05,2]
[355658575,1741443062497,-1790.88,9.589e-05,2]
[355658576,1741443062507,-525.59,9.589e-05,2]
[355658577,1741443062516,-1360.38,9.589e-05,2]
[355658578,1741443062525,-708.22,9.589e-05,2]
[355658579,1741443062535,-500.0,9.589e-05,2]
[355658580,1741443062544,-894.22,9.589e-05,2]
[355658581,1741443062553,-582.23,9.589e-05,2]
[355658582,1741443062563,-775.56,9.589e-05,2]
[355658583,1741443062573,-500.0,9.589e-05,2]
[355658584,1741443062583,-500.0,9.589e-05,2]
[355658585,1741443062594,-2448.24,9.589e-05,2]
[355658586,1741443062603,-500.0,9.589e-05,2]
[355658587,1741443062613,-7013.5,9.589e-05,2]
[355658588,1741443062623,-918.85,9.589e-05,2]
[355658589,1741443062632,-1190.86,9.589e-05,2]
[355658590,1741443062641,-839.16,9.589e-05,2]
[355658591,1741443062650,-1966.66,9.589e-05,2]
[355658592,1741443062660,-542.9,9.589e-05,2]
[355658593,1741443062669,-1216.66,9.589e-05,2]
[355658594,1741443062678,-3097.05,9.589e-05,2]
[355658595,1741443062689,-500.0,9.589e-05,2]
[355658596,1741443062699,-500.0,9.589e-05,2]
[355658597,1741443062708,-3024.79,9.589e-05,2]
[355658598,1741443062718,-1118.79,9.589e-05,2]
[355658599,1741443062727,-3322.53,9.589e-05,2]
[355658600,1741443062736,-5739.66,9.589e-05,2]
[355658601,1741443062747,-1387.26,9.589e-05,2]
[355658602,1741443062757,-500.0,9.589e-05,2]
[355658603,1741443062766,-3291.17,9.589e-05,2]
[355658604,1741443062775,-500.0,9.589e-05,2]
[355658605,1741443062785,-622.57974598,9.589e-05,2]
[355658606,1741443062795,-827.89,9.589e-05,2]
[355658607,1741443062805,-2261.26,9.589e-05,2]
[355658608,1741443062814,-586.83,9.589e-05,2]
[355658609,1741443062823,-26214.54,9.589e-05,2]
[355658610,1741443062832,-1959.82,9.589e-05,2]
[355658611,1741443062841,-2373.0,9.589e-05,2]
[355658612,1741443062850,-1178.21,9.589e-05,2]
[355658613,1741443062859,-500.0,9.589e-05,2]
[355658614,1741443062869,-875.1,9.589e-05,2]
[355658615,1741443062879,-694.74,9.589e-05,2]
[355658616,1741443062888,-500.0,9.589e-05,2]
[355658617,1741443062897,-2417.9,9.589e-05,2]
[355658618,1741443062907,-1440.82,9.589e-05,2]
[355658619,1741443062915,-618.25,9.589e-05,2]
[355658620,1741443062924,-716.18,9.589e-05,2]
[355658621,1741443062934,-2650.14,9.589e-05,2]
[355658622,1741443062943,-2743.59,9.589e-05,2]
[355658623,1741443062952,-510.66,9.589e-05,2]
[355658624,1741443062961,-1069.98,9.589e-05,2]
[355658625,1741443062971,-3910.16,9.589e-05,2]
[355658626,1741443062981,-920.83,9.589e-05,2]
[355658627,1741443062994,-1495.45,9.589e-05,2]
[355658628,1741443063003,-1851.0,9.589e-05,2]
[355658629,1741443063013,-745.02,9.589e-05,2]
[355658630,1741443063023,-500.0,9.589e-05,2]
[355658631,1741443063034,-668.21,9.589e-05,2]
[355658632,1741443063045,-3098.62,9.589e-05,2]
[355658633,1741443063056,-1004.41,9.589e-05,2]
[355658634,1741443063065,-3488.24,9.589e-05,2]
[355658635,1741443063075,-2252.59,9.589e-05,2]
[355658636,1741443063085,-8501.84,9.589e-05,2]
[355658637,1741443063095,-1721.31,9.589e-05,2]
[355658638,1741443063105,-862.44,9.589e-05,2]
[355658639,1741443063115,-1078.14,9.589e-05,2]
[355658640,1741443063125,-500.0,9.589e-05,2]
[355658641,1741443063134,-885.21,9.589e-05,2]
[355658642,1741443063144,-2630.22,9.589e-05,2]
[355658643,1741443063155,-2081.54,9.589e-05,2]
[355658644,1741443063165,-690.71,9.589e-05,2]
[355658645,1741443063175,-4065.32,9.589e-05,2]
[355658646,1741443063188,-519.29,9.589e-05,2]
[355658647,1741443063199,-2084.55,9.589e-05,2]
[355658648,1741443063210,-4644.52,9.589e-05,2]
[355658649,1741443063220,-799.87,9.589e-05,2]
[355658650,1741443063230,-589.49,9.589e-05,2]
[355658651,1741443063240,-4156.29,9.589e-05,2]
[355658652,1741443063250,-767.74,9.589e-05,2]
[355658653,1741443063259,-1886.77,9.589e-05,2]
[355658654,1741443063270,-1725.43,9.589e-05,2]
[355658655,1741443063280,-500.0,9.589e-05,2]
[355658656,1741443063290,-1698.35,9.589e-05,2]
[355658657,1741443063300,-3160.81,9.589e-05,2]
[355658658,1741443063310,-1242.18,9.589e-05,2]
[355658659,1741443063319,-555.82,9.589e-05,2]
[355658660,1741443063329,-1646.8,9.589e-05,2]
[355658661,1741443063339,-500.0,9.589e-05,2]
[355658662,1741443063348,-500.0,9.589e-05,2]
[355658663,1741443063357,-6451.11,9.589e-05,2]
[355658664,1741443063367,-1917.52,9.589e-05,2]
[355658665,1741443063376,-500.0,9.589e-05,2]
[355658666,1741443063385,-1833.4,9.589e-05,2]
[355658667,1741443063394,-1440.65,9.589e-05,2]
[355658668,1741443063404,-10074.21,9.589e-05,2]
[355658669,1741443063413,-1484.97,9.589e-05,2]
[355658670,1741443063423,-910.58,9.589e-05,2]
[355658671,1741443063432,-854.44,9.589e-05,2]
[355658672,1741443063443,-500.0,9.589e-05,2]
[355658673,1741443063453,-1085.59,9.589e-05,2]
[355658674,1741443063462,-786.84,9.589e-05,2]
[355658675,1741443063472,-3065.61,9.589e-05,2]
[355658676,1741443063482,-3916.11,9.589e-05,2]
[355658677,1741443063491,-3110.92,9.589e-05,2]
[355658678,1741443063502,-500.0,9.589e-05,2]
[355658679,1741443063511,-2070.62,9.589e-05,2]
[355658680,1741443063521,-1877.02,9.589e-05,2]
[355658681,1741443063531,-500.0,9.589e-05,2]
[355658682,1741443063541,-2600.68,9.589e-05,2]
[355658683,1741443063550,-1300.92,9.589e-05,2]
[355658684,1741443063560,-1518.1,9.589e-05,2]
[355658685,1741443063570,-1783.42,9.589e-05,2]
[355658686,1741443063580,-17366.31,9.589e-05,2]
[355658687,1741443063590,-1110.41,9.589e-05,2]
[355658688,1741443063599,-3606.8,9.589e-05,2]
[355658689,1741443063608,-500.0,9.589e-05,2]
[355658690,1741443063617,-1428.23,9.589e-05,2]
[355658691,1741443063627,-1604.73,9.589e-05,2]
[355658692,1741443063636,-2488.11,9.589e-05,2]
[355658693,1741443063646,-4380.18,9.589e-05,2]
[355658694,1741443063655,-1902.18,9.589e-05,2]
[355658695,1741443063665,-2382.88,9.589e-05,2]
[355658696,1741443063675,-500.0,9.589e-05,2]
[355658697,1741443063685,-2615.48,9.589e-05,2]
[355658698,1741443063696,-1056.55,9.589e-05,2]
[355658699,1741443063705,-558.68,9.589e-05,2]
[355658700,1741443063715,-4241.28,9.589e-05,2]
[355658701,1741443063724,-1854.0,9.589e-05,2]